Cogmind - Beta 15 *** ADVENTURER MODE // 2025.07.05 @ 16:31:42 Player: FourDJ Result: Destroyed by S-27 Virus with Autogun Performance ------------- Evolutions (3) 1500 Regions Visited (6) 1200 Robots Destroyed (40) 200 Value Destroyed (1048) 1048 Prototype IDs (1) 20 Alien Tech Used (0) 0 Bonus (30) 30 TOTAL SCORE: 3998 Bonus ------- Follower Combat Kills 30 Cogmind --------- Core Integrity 0/700 Matter 279/300 Energy 100/100 System Corruption 0% Temperature Cool (0) Movement Core (50) Location -7/Factory Parts ------- > --- POWER (2) -------- (None) > --- PROPULSION (4) --- (None) > --- UTILITY (4) ------ Machine Analyzer Advanced Terrain Scan Processor > --- WEAPON (3) ------- (None) > --- INVENTORY (5) ---- Advanced ECM Suite Improved Light Armor Plating Hacking Suite Gauss Rifle Gauss Rifle Peak State ------------ > --- POWER ------------ Improved Ion Engine > --- PROPULSION ------- Aerolev Unit Aerolev Unit Aerolev Unit Aerolev Unit > --- UTILITY ---------- Advanced Visual Processing Unit Advanced Targeting Computer Transmission Jammer Improved Light Armor Plating > --- WEAPON ----------- Gauss Rifle Gauss Rifle > --- INVENTORY -------- Flight Unit Flight Unit Flight Unit Flight Unit [Rating: 39] Favorites ----------- Power Ion Engine Engine Ion Engine Propulsion Aerolev Unit Treads Light Treads Hover Unit Aerolev Unit Flight Unit Flight Unit Utility Machine Analyzer Device Improved Terrain Scanner Storage Small Storage Unit Processor Machine Analyzer Hackware System Shield Protection Improved Light Armor Plating Weapon Gauss Rifle Energy Gun Small Laser Ballistic Gun Gauss Rifle Special Melee Weapon Datajack Build | -11 -10 -9 -8 -7 -7 -7 ------- Run | Yrd Mat Mat Mat Fac Was Fac Slots Evolved 6 | . . 2 2 2 . . Power 1 | . . . . 1 . . Propulsion 2 | . . 2 . . . . Utility 2 | . . . 2 . . . Weapon 1 | . . . . 1 . . Parts Attached 40 | 6 6 11 4 13 . . Power 5 | 1 . 2 . 2 . . Engine 5 | 1 . 2 . 2 . . Core . | . . . . . . . Reactor . | . . . . . . . Propulsion 11 | 2 . 5 . 4 . . Treads 3 | 2 . 1 . . . . Leg . | . . . . . . . Wheel . | . . . . . . . Hover 4 | . . 4 . . . . Flight 4 | . . . . 4 . . Utility 12 | 1 2 2 2 5 . . Device 2 | . . . . 2 . . Storage 1 | 1 . . . . . . Processor 7 | . 2 2 . 3 . . Hackware 1 | . . . 1 . . . Protection 1 | . . . 1 . . . Artifact . | . . . . . . . Weapon 12 | 2 4 2 2 2 . . Energy Gun 2 | . 1 1 . . . . Energy Cannon . | . . . . . . . Ballistic Gun 9 | 2 2 1 2 2 . . Ballistic Cannon . | . . . . . . . Launcher . | . . . . . . . Special Weapon . | . . . . . . . Impact Weapon . | . . . . . . . Slashing Weapon . | . . . . . . . Piercing Weapon . | . . . . . . . Special Melee Weapon 1 | . 1 . . . . . Unidentified Prototypes 1 | . . 1 . . . . Parts Lost 14 | . 2 1 . 5 2 4 Power 4 | . 1 . . 1 1 1 Propulsion 5 | . . . . 3 . 2 Utility 1 | . . . . 1 . . Weapon 4 | . 1 1 . . 1 1 Highest Loss Streak 4 | . 2 1 . 4 2 2 To Critical Strikes 1 | . . . . . . 1 Average Backups 3 | 2 2 2 3 4 5 5 Power . | . 1 . . . . . Propulsion . | . . . 2 2 . . Utility 1 | . . 1 . 1 3 3 Weapon . | 1 . . . . 2 2 Tool/Special . | . . . . . . . Unused Backups 5 | . . 2 1 . . 2 Power . | . . . . . . . Propulsion . | . . . . . . . Utility 5 | . . 2 1 . . 2 Weapon . | . . . . . . . Tool/Special . | . . . . . . . Average Slot Usage (%) 76 | . 94 78 93 80 54 24 Engine 8 | . 12 5 9 7 8 1 Treads 10 | . 28 12 . . . . Hover 11 | . . 25 36 17 . . Flight 4 | . . . . 10 15 4 Storage 3 | . 10 . . . . . Processor 16 | . 14 22 18 16 15 15 Protection 1 | . . . 6 5 . . Energy Gun 2 | . 2 10 4 . . . Ballistic Gun 12 | . 18 3 13 15 14 3 Special Melee Weapon 1 | . 5 . . . . . Peak Build Rating 39 | 6 7 28 38 39 24 21 Average Rating 17 | 3 6 17 34 32 21 11 On Entrance 16 | . 6 5 28 38 18 17 Naked Turns . | . . . . . . . Heaviest Build 22 | 13 13 13 18 22 12 6 Greatest Support 60 | 40 40 60 32 32 8 8 Greatest Overweight (x) 3 | 3 . . . 1 1 1 Average Overweight (x) . | . . . . . . . Largest Inventory Capacity 8 | 8 8 5 5 5 5 5 Average Capacity 5 | 7 7 5 5 5 5 5 Most Carried 6 | 6 5 5 5 5 5 5 Average Carried 3 | 3 2 2 3 4 5 4 Final Capacity 8 | 8 5 5 5 5 5 5 Final Carried 5 | 2 3 3 4 5 5 5 Class Distribution -------------------- 86% | Mutant 6% | Scavenger-Scout 5% | Hacker-Mutant Dominant Class ---------------- Mutant | -10/Materials Mutant | -9/Materials Hacker-Mutant | -8/Materials Mutant | -7/Factory Mutant | -7/Waste Mutant | -7/Factory Resources | -11 -10 -9 -8 -7 -7 -7 ----------- Run | Yrd Mat Mat Mat Fac Was Fac Matter Collected 1115 | 250 137 190 50 433 55 . Remotely . | . . . . . . . Salvage Created 1391 | . 245 388 130 628 . . Parts 100 | . 20 26 12 42 . . Haulers Intercepted . | . . . . . . . Recyclers Shooed 1 | . . . . 1 . . Parts Field Recycled . | . . . . . . . Retrieved Matter . | . . . . . . . Parts Self-Destructed . | . . . . . . . Prevented . | . . . . . . . Kills | -11 -10 -9 -8 -7 -7 -7 ------- Run | Yrd Mat Mat Mat Fac Was Fac Combat Hostiles Destroyed 29 | . 7 8 4 10 . . Guns 29 | . 7 8 4 10 . . Classes Destroyed 9 | . 3 3 . 3 . . Worker 4 | . . 1 1 2 . . Tunneler 2 | . 1 . . 1 . . Recycler 2 | . . 1 . 1 . . Operator 1 | . . . . 1 . . Watcher 2 | . . . . 2 . . Swarmer 12 | . 3 3 3 3 . . Grunt 11 | . 4 1 . 6 . . Sentry 5 | . . 4 1 . . . Programmer 1 | . . . . 1 . . Best Kill Streak 8 | . 3 8 3 6 . . Combat Bots Only 6 | . 3 6 3 4 . . Max Kills in Single Turn 2 | . 1 1 1 2 . . Gunslinging . | . . . . . . . Exploded . | . . . . . . . Melee . | . . . . . . . Uniques/NPCs Destroyed . | . . . . . . . Combat | -11 -10 -9 -8 -7 -7 -7 -------- Run | Yrd Mat Mat Mat Fac Was Fac Hostile Shots Fired 355 | . 108 49 19 84 2 93 Missed 110 | . 23 24 5 22 1 35 Hits 245 | . 85 25 14 62 1 58 Melee 1 | . . . . . 1 . Projectile 244 | . 85 25 14 62 . 58 Critical Strikes 6 | . 1 . . 3 1 1 Damage Taken 2556 | . 699 257 96 802 43 659 Core 957 | . 175 52 29 135 43 523 Absorbed by Shields . | . . . . . . . Ignored by Resistances 761 | . 220 73 29 231 11 197 Regen/Repaired (Parts) 7 | . . . . . 7 . Core Remaining (%) 77 | 100 30 87 94 . . . Volleys Fired 104 | . 29 24 6 45 . . Largest 2 | . 2 2 2 2 . . Hottest 79 | . 60 79 79 56 . . Shots Fired 191 | . 53 36 12 90 . . Gun 191 | . 53 36 12 90 . . Cannon . | . . . . . . . Launcher . | . . . . . . . Special . | . . . . . . . Kinetic 155 | . 40 14 11 90 . . Thermal 36 | . 13 22 1 . . . Explosive . | . . . . . . . Electromagnetic . | . . . . . . . Robot Hit Streak 28 | . 23 28 9 14 . . Robot Miss Streak 2 | . 2 1 1 2 . . Penetration Max 1 | . . . 1 1 . . Secondary Targets 8 | . 2 2 1 3 . . Max Gunslinging Chain 1 | . 1 1 1 1 . . Shots Hit Robots 154 | . 44 31 10 69 . . Core Hits 67 | . 17 15 6 29 . . Critical Kills 1 | . . . . 1 . . Critical Parts Destroyed . | . . . . . . . Critical Strikes 2 | . . 1 . 1 . . Burn 1 | . . 1 . . . . Destroy 1 | . . . . 1 . . Melee Attacks . | . . . . . . . Impact . | . . . . . . . Slashing . | . . . . . . . Piercing . | . . . . . . . Sneak Attacks . | . . . . . . . Combat Hostiles . | . . . . . . . Follow-up Attacks . | . . . . . . . Damage Inflicted 2859 | . 493 416 224 1726 . . Guns 2715 | . 493 416 224 1582 . . Cannons . | . . . . . . . Explosions 144 | . . . . 144 . . Melee . | . . . . . . . Ramming . | . . . . . . . Kinetic 2335 | . 352 192 209 1582 . . Thermal 524 | . 141 224 15 144 . . Explosive . | . . . . . . . Electromagnetic . | . . . . . . . Impact . | . . . . . . . Slashing . | . . . . . . . Piercing . | . . . . . . . Highest Corruption . | . . . . . . . Average Corruption . | . . . . . . . Corruption Purged . | . . . . . . . Corruption Blocked . | . . . . . . . Overload Shots . | . . . . . . . Overflow Damage . | . . . . . . . Projectiles . | . . . . . . . Explosions . | . . . . . . . Melee . | . . . . . . . Knockbacks . | . . . . . . . Impact . | . . . . . . . Kinetic . | . . . . . . . Secondary . | . . . . . . . Self-Inflicted Damage 28 | . . . . 28 . . Shots 1 | . . . . 1 . . Rammed . | . . . . . . . Targets Rammed . | . . . . . . . Kicked . | . . . . . . . Crushed . | . . . . . . . Highest Temperature 288 | . 252 177 23 288 . . Average Temperature 86 | . 101 58 10 111 . . Received Heat Transfer 963 | . 459 90 9 396 . 9 Siege Activations . | . . . . . . . Martial Activations . | . . . . . . . Shielding Activations . | . . . . . . . Robots Disrupted . | . . . . . . . Combat Hostiles . | . . . . . . . Robots Corrupted . | . . . . . . . Combat Hostiles . | . . . . . . . Parts Fried . | . . . . . . . Impact Corruptions . | . . . . . . . Robots Melted . | . . . . . . . Combat Hostiles . | . . . . . . . Parts Melted . | . . . . . . . Heat Transferred 1132 | . 325 620 37 150 . . Parts Sabotaged . | . . . . . . . Parts Stolen . | . . . . . . . Parts Stripped . | . . . . . . . Power Chain Reactions . | . . . . . . . Alert | -11 -10 -9 -8 -7 -7 -7 ------- Run | Yrd Mat Mat Mat Fac Was Fac Maximum Alert Level . | . . . . . . . Low Security (%) 100 | 100 100 100 100 100 100 100 Level 1 . | . . . . . . . Level 2 . | . . . . . . . Level 3 . | . . . . . . . Level 4 . | . . . . . . . Level 5 . | . . . . . . . High Security . | . . . . . . . Max Security . | . . . . . . . Peak Influence 185 | . 60 185 141 168 49 15 Initial 66 | . . . 66 54 49 . Average 31 | . 16 40 81 56 9 . Influence Increases 940 | . 190 235 135 348 17 15 Destroy 0b10 Robot/C 580 | . 140 160 80 200 . . Destroy 0b10 Robot/NC 55 | . 5 10 5 35 . . Destroy Leader 134 | . 30 50 20 34 . . Disable Machine 9 | . . . . 9 . . Destroy Structure 42 | . . . . 25 17 . Partial Spotted 30 | . . . . 30 . . Lose Combat Pursuer 90 | . 15 15 30 15 . 15 Influence Decreases 940 | . 190 50 179 321 185 15 Entered New Map 325 | . . . 119 87 119 . Time Decay 488 | . 170 40 60 184 29 5 Lost Part 90 | . 20 10 . 50 . 10 Lost Ally 37 | . . . . . 37 . Squads Dispatched 5 | . 2 . 1 2 . . Investigation 3 | . 2 . 1 . . . Extermination 1 | . . . . 1 . . Reinforcement 1 | . . . . 1 . . Assault . | . . . . . . . Garrison . | . . . . . . . Intercept . | . . . . . . . Searches Triggered . | . . . . . . . Construction Impeded . | . . . . . . . Haulers Reinforced . | . . . . . . . Active Scanning Responses . | . . . . . . . Cargo Convoy Interrupts . | . . . . . . . Stealth | -11 -10 -9 -8 -7 -7 -7 --------- Run | Yrd Mat Mat Mat Fac Was Fac Distress Signals 4 | . . 3 . 1 . . Communications Jammed . | . . . . . . . Distress Signals . | . . . . . . . Times Spotted 69 | . 18 11 6 19 11 4 Peak Tracking Total 9 | . 5 9 3 7 6 3 Tactical Retreats 6 | . 1 1 1 1 1 1 Traps | -11 -10 -9 -8 -7 -7 -7 ------- Run | Yrd Mat Mat Mat Fac Was Fac Traps Triggered 5 | . 2 . 1 1 . 1 Indirectly . | . . . . . . . Trap Hack Attempts . | . . . . . . . Triggered . | . . . . . . . Disarmed . | . . . . . . . Reprogrammed . | . . . . . . . Reused . | . . . . . . . Traps Extracted . | . . . . . . . Installed . | . . . . . . . Triggered . | . . . . . . . Machines | -11 -10 -9 -8 -7 -7 -7 ---------- Run | Yrd Mat Mat Mat Fac Was Fac Machines Disabled 1 | . . . . 1 . . Max in Single Turn 1 | . . . . 1 . . Machines Repaired . | . . . . . . . Machines Dismantled . | . . . . . . . Machines Sabotaged . | . . . . . . . Overloaded Fab Kills . | . . . . . . . Hacking | -11 -10 -9 -8 -7 -7 -7 --------- Run | Yrd Mat Mat Mat Fac Was Fac Machines Accessed 1 | . . 1 . . . . Terminals . | . . . . . . . Fabricators . | . . . . . . . Repair Stations . | . . . . . . . Recycling Units . | . . . . . . . Scanalyzers 1 | . . 1 . . . . Garrison Access . | . . . . . . . Total Hacks 2 | . . 2 . . . . Successful 2 | . . 2 . . . . Failed . | . . . . . . . Catastrophic . | . . . . . . . Database Lockouts . | . . . . . . . Manual . | . . . . . . . Terminals . | . . . . . . . Fabricators . | . . . . . . . Repair Stations . | . . . . . . . Recycling Units . | . . . . . . . Scanalyzers 2 | . . 2 . . . . Garrison Access . | . . . . . . . Terminal Hacks . | . . . . . . . Fabricator Hacks . | . . . . . . . Repair Station Hacks . | . . . . . . . Recycling Unit Hacks . | . . . . . . . Scanalyzer 2 | . . 2 . . . . Insert Component 1 | . . 1 . . . . Analyze 1 | . . 1 . . . . Garrison Access Hacks . | . . . . . . . Unauthorized Hacks . | . . . . . . . Terminals . | . . . . . . . Fabricators . | . . . . . . . Repair Stations . | . . . . . . . Recycling Units . | . . . . . . . Scanalyzers . | . . . . . . . Garrison Access . | . . . . . . . Data Cores Recovered 1 | . . . . 1 . . Used . | . . . . . . . Hacking Detections . | . . . . . . . Full Trace Events . | . . . . . . . Feedback Events . | . . . . . . . Feedback Blocked . | . . . . . . . Robot Schematics Acquired . | . . . . . . . Robots Built . | . . . . . . . Authchips . | . . . . . . . Time . | . . . . . . . Total Robot Build Rating . | . . . . . . . Part Schematics Acquired 1 | . . 1 . . . . Parts Built . | . . . . . . . Authchips . | . . . . . . . Time . | . . . . . . . Total Part Build Rating . | . . . . . . . Parts Repaired . | . . . . . . . Time . | . . . . . . . Parts Recycled . | . . . . . . . Recycled Matter . | . . . . . . . Retrieved Matter . | . . . . . . . Retrieved Components . | . . . . . . . Parts Scanalyzed 1 | . . 1 . . . . Part Schematics Acquired 1 | . . 1 . . . . Parts Damaged . | . . . . . . . Bothacking | -11 -10 -9 -8 -7 -7 -7 ------------ Run | Yrd Mat Mat Mat Fac Was Fac Used RIF Installer . | . . . . . . . Robots Hacked . | . . . . . . . Non-combat . | . . . . . . . Combat . | . . . . . . . Robot Hacks Applied . | . . . . . . . Relay Couplers Released 4 | . . . . 4 . . Programmers 4 | . . . . 4 . . Fabnet Peak Effective % . | . . . . . . . Robots Rewired . | . . . . . . . Allies Hacked . | . . . . . . . Hacks Repelled . | . . . . . . . Allies | -11 -10 -9 -8 -7 -7 -7 -------- Run | Yrd Mat Mat Mat Fac Was Fac Total Allies 20 | . . . . . 20 . Largest Group 19 | . . . . . 19 . Highest-Rated Group 465 | . . . . . 465 . Highest-Rated Ally 35 | . . . . . 35 . Total Orders . | . . . . . . . Ally Attacks 115 | . . . . . 115 . Total Damage 2791 | . . . . . 2791 . Kills 2 | . . . . . 2 . Allies Corrupted . | . . . . . . . Allies Melted . | . . . . . . . Intel | -11 -10 -9 -8 -7 -7 -7 ------- Run | Yrd Mat Mat Mat Fac Was Fac Active Infowar (turns) 1171 | . . 178 125 479 189 200 Optics 605 | . . 178 125 302 . . Terrain 208 | . . . . 208 . . Machine Analysis 804 | . . . . 415 189 200 Jamming 46 | . . . . 46 . . Robot Analysis Total . | . . . . . . . Derelict Logs Recovered . | . . . . . . . Drone Launches . | . . . . . . . Drone Recoveries . | . . . . . . . Exploration | -11 -10 -9 -8 -7 -7 -7 ------------- Run | Yrd Mat Mat Mat Fac Was Fac Turns Passed 1983 | 74 598 318 125 479 189 200 Spaces Moved 2005 | 51 308 279 246 645 277 199 Core 45 | 22 . . . . . 23 Treads 403 | 29 308 66 . . . . Legs . | . . . . . . . Wheels . | . . . . . . . Hover 783 | . . 213 246 324 . . Flight 774 | . . . . 321 277 176 Fastest Speed 31 | 50 160 38 38 31 37 37 Average Speed 66 | 120 160 69 38 35 60 47 Slowest Speed 200 | 200 160 160 38 117 117 120 Overloaded Moves . | . . . . . . . Propulsion Burnouts . | . . . . . . . Robots Hopped . | . . . . . . . Potential Cave-ins . | . . . . . . . Cave-ins Triggered . | . . . . . . . Exploration Rate (%) 32 | 3 48 26 26 21 91 9 Regions Visited 6 Branch Regions . Pre-discovered Areas . | . . . . . . . Known Exits Taken 1 | . 1 . . . . . Unknown Exits Taken 3 | 1 . 1 1 . . . Scrap Searched . | . . . . . . . Spaces Dug . | . . . . . . . Terrain Destroyed 29 | . . . . 29 . . Melee . | . . . . . . . Projectile . | . . . . . . . AOE 29 | . . . . 29 . . Terrain Rammed . | . . . . . . . Walls Destroyed . | . . . . . . . Machines Disabled . | . . . . . . . Actions | -11 -10 -9 -8 -7 -7 -7 --------- Run | Yrd Mat Mat Mat Fac Was Fac Total 2468 | 63 362 369 265 806 297 306 Wait 251 | 1 10 32 . 82 21 105 Move 2000 | 50 307 278 245 645 276 199 Hop . | . . . . . . . Pick Up 41 | 6 6 14 7 8 . . Fast Attach 7 | 2 . 1 . 4 . . Attach 16 | 4 1 6 2 2 . 1 Detach 3 | . . . . 2 . 1 Swap 21 | . 5 5 2 9 . . Drop 25 | . 4 9 3 9 . . Fire 104 | . 29 24 6 45 . . Melee . | . . . . . . . Ram . | . . . . . . . Kick . | . . . . . . . Crush . | . . . . . . . Escape Stasis . | . . . . . . . Rewire . | . . . . . . . Trap . | . . . . . . . Miscellaneous . | . . . . . . . Route ------- -11/Scrapyard -10/Materials (discovered 2 exits: *Mat / [*Min]) -9/Materials -8/Materials -7/Factory -7/Waste -7/Factory History --------- Turn | Location | Event 7 | -11/Scrapyard | Discovered new exit (range 15) 75 | -11/Scrapyard | Entered Materials 329 | -10/Materials | Build established: Mutant 361 | -10/Materials | Discovered new exit (range 7) 417 | -10/Materials | Discovered new exit (range 13) 631 | -10/Materials | Core integrity fell below 50% 671 | -10/Materials | Identified exit to Materials 673 | -10/Materials | Entered another Materials area 673 | -9/Materials | Evolved 2 slots: Propulsion x2 988 | -9/Materials | Discovered new exit (range 10) 991 | -9/Materials | Entered another Materials area 991 | -8/Materials | Evolved 2 slots: Utility x2 1096 | -8/Materials | Discovered new exit (range 9) 1116 | -8/Materials | Entered Factory 1116 | -7/Factory | Evolved 2 slots: Power x1, Weapon x1 1595 | -7/Factory | Sucked down chute 1595 | -7/Factory | Entered Waste 1596 | -7/Waste | Met a frightened Derelict 1600 | -7/Waste | Lost 4 parts (1p2n1u) 1601 | -7/Waste | Spotted C-40 Crusher 1612 | -7/Waste | Spotted C-40 Crusher 1612 | -7/Waste | Spotted C-40 Crusher 1641 | -7/Waste | Spotted C-40 Crusher 1644 | -7/Waste | Spotted C-40 Crusher 1644 | -7/Waste | Spotted C-40 Crusher 1652 | -7/Waste | Warlord forces began an assault 1770 | -7/Waste | Allies destroyed C-40 Crusher 1770 | -7/Waste | Crushed by Compactor (2 parts destroyed) 1780 | -7/Waste | Discovered new exit (range 11) 1784 | -7/Waste | Entered Factory 1802 | -7/Factory | Lost 3 allies 1881 | -7/Factory | Core integrity fell below 50% 1945 | -7/Factory | Core integrity fell below 20% 1984 | -7/Factory | Destroyed by S-27 Virus with Autogun Last Messages --------------- Fabricator x1 Triggered Ambush Trap. S-27 Virus emerges from a hatch in the floor. G-47 Trooper emerges from a hatch in the floor. S-27 Virus emerges from a hatch in the floor. ALERT: All DSF locations entering lockdown mode. U-05 Engineer lays Concrete. Flight Unit destroyed. U-05 Engineer lays Concrete. K-01 Serf collects debris. Backup Power III destroyed. U-05 Engineer builds a Door. >> Machine Analyzer network decryption results: Terminal x1 Flight Unit destroyed. K-01 Serf destroyed. Critical hit (Destroy). Gauss Rifle destroyed. K-01 Serf collects debris. T-07 Excavator destroyed. Map ----- +----------------------------------------------------+ | ?????????????????????????????????????????????????? | | ?????????????????????????????????????????????????? | | ?????????????????????????????????????????????????? | | ?????????????????????????????????????????????????? | | ?????????????????????????????????????????????????? | | ?????????????????????????????????????????????????? | | ?????????????????????????????????????????????????? | | ?????????????????????????????????????????????????? | | ?????????????????????????????????????????????????? | | ?????????????????????????????????????????????????? | | ?????????????????????????????????????????????????? | | ?????????????????????????????????????????????????? | | ?????????????????????????????????????????????????? | | ?????????????????????????????????????????????????? | | ?????????????????????????????????????????????????? | | ?????????????????????????????????????????????????? | | ?????????????????????????????????????????????????? | | ?????????????????????????????????????????????????? | | ?????????????????????????????????????????????????? | | ?????????????????????????????????????????????????? | | ?????????????????????????????????????????????????? | | ?????????????????????????????????????????????????? | | ?????????????????????????????????????????????????? | | ?????????????????????????????????????????????????? | | ???????????????? #####r#########?????????????????? | | ?????????? r@ #?????????????????? | | ?????????? ! #?????????????????? | | ?????????? %= #?????????????????? | | ??????????? s #???##########????? | | ??????????? #?? #????? | | ????????????##+###########s #?? #????? | | ????????????????????? ??# #? #????? | | ?????????????????????? ?# #? #????? | | ??????????????????????? # # #????? | | ???????????????????????? # # #????? | | ?????????????????????????+ + #????? | | ?????????????????????????# u# ] [ #????? | | ?????????????????????????# # #????? | | ?????????????????????????# #? +????? | | ?????????????????????????# % #? #????? | | ?????????????????????????# #?? #????? | | ?????????????????????????# #??###########????? | | ?????????????????????????# #?????????????????? | | ????????????############## #?????????????????? | | ????????????# # #?????????????????? | | ????????????# # #?????????????????? | | ????????????# # #?????????????????? | | ????????????# # #?????????????????? | | ????????????# # #?????????????????? | | ????????????# + #?????????????????? | +----------------------------------------------------+ Best States ------------- Heat Dissipation 34 Energy Generation 17 Energy Capacity 290 Matter Stores 300 Matter Capacity 300 Sight Range 20 Terrain Scan Range 16 Terrain Scan Density 210 Jamming Range 12 Armor Coverage 150 Resistance: KI 20 Resistance: TH 20 Resistance: EX 20 Resistance: EM 20 Resistance: I 20 Resistance: S 20 Resistance: P 20 Evasion (%) 63 Targeting Accuracy 8 Recoil Reduction 3 Offensive Hacking 10 Defensive Hacking 10 Item Schematics ----------------- Sml. Storage Unit | -9/Materials | Scanalyzed Robot Schematics ------------------ None Fabricated ------------ Nothing Repaired ---------- Nothing Alien Tech Used ----------------- None Achievements -------------- Omniscient Cartographer Please Form A Line Challenges ------------ None Game ------ Seed ClaymoresCompositeLauncher Manual? 0 Play Time 00:52:38 Cumulative 6.5 hours Start 2025.07.05 @ 15:40:07 End 2025.07.05 @ 16:31:42 Sessions 1 Manual Loads 0 Difficulty Adventurer Special Mode None Game No. 12 Rogue 0 Adventurer 12 Explorer 0 Win Type - Total 0 Types 0/0/0/0/0/0/0/0/0/0 Lore% 2 Gallery% 10 Achievement% 10 Wizard Run 0 Options --------- Layout 1 ASCII 0 Keyboard 0 Movement Mouse Keybinds 0 Fullscreen 1 Font 24/Smallcaps Map View 50x35 Zoom Use 0% Tactical HUD 0 Map Filters NONE Filters NONE Steam 1 RUN: 399606d9-cc3a-4fe2-8bc6-d52d90901007